[Event "Early-Titled-Tuesday-Blitz-October-03-2023"]
[Site "Chess.com"]
[Date "2023.10.03"]
[Round "8"]
[White "profedechess93"]
[Black "Shuvalov"]
[Result "1-0"]
[WhiteElo "2637"]
[BlackElo "2463"]
[TimeControl "180+1"]
[EndTime "9:30:49 PDT"]
[Termination "profedechess93 won by resignation"]

1. e4 {[%clk 0:03:00.9]} 1... e6 {[%clk 0:02:31.5]} 2. d4 {[%clk 0:03:00.2]}
2... d5 {[%clk 0:02:30.9]} 3. Nc3 {[%clk 0:03:00.9]} 3... Bb4 {[%clk 0:02:30.5]}
4. e5 {[%clk 0:03:01.3]} 4... c5 {[%clk 0:02:30.9]} 5. a3 {[%clk 0:03:01.8]}
5... Bxc3+ {[%clk 0:02:31.4]} 6. bxc3 {[%clk 0:03:02.6]} 6... Ne7 {[%clk
0:02:31.9]} 7. Nf3 {[%clk 0:03:03.1]} 7... b6 {[%clk 0:02:30.8]} 8. Bb5+ {[%clk
0:03:03.2]} 8... Bd7 {[%clk 0:02:30.4]} 9. Bd3 {[%clk 0:03:03.9]} 9... Nbc6
{[%clk 0:02:27.6]} 10. h4 {[%clk 0:03:03]} 10... h6 {[%clk 0:02:27.8]} 11. h5
{[%clk 0:03:03.4]} 11... Qc7 {[%clk 0:02:27.4]} 12. O-O {[%clk 0:03:03.4]} 12...
O-O {[%clk 0:02:18]} 13. Bf4 {[%clk 0:03:01.9]} 13... a6 {[%clk 0:02:12.7]} 14.
Qd2 {[%clk 0:03:01.8]} 14... c4 {[%clk 0:02:05.3]} 15. Be2 {[%clk 0:01:38.6]}
15... b5 {[%clk 0:01:47.2]} 16. g4 {[%clk 0:01:35]} 16... Kh7 {[%clk 0:01:45.3]}
17. Kh2 {[%clk 0:01:28.5]} 17... Rg8 {[%clk 0:01:44.4]} 18. Rg1 {[%clk
0:01:28.6]} 18... a5 {[%clk 0:01:44]} 19. g5 {[%clk 0:01:11.7]} 19... Nf5 {[%clk
0:01:43.8]} 20. g6+ {[%clk 0:01:12.2]} 20... fxg6 {[%clk 0:01:42]} 21. hxg6+
{[%clk 0:01:13.1]} 21... Kh8 {[%clk 0:01:41.7]} 22. Rg4 {[%clk 0:01:05.8]} 22...
Rgf8 {[%clk 0:01:39.5]} 23. Rag1 {[%clk 0:01:04.9]} 23... Kg8 {[%clk 0:01:26.1]}
24. Nh4 {[%clk 0:01:03.2]} 24... Nce7 {[%clk 0:01:23.9]} 25. Ng2 {[%clk
0:00:38]} 25... Qb6 {[%clk 0:01:15.6]} 26. Ne3 {[%clk 0:00:29.6]} 26... b4
{[%clk 0:01:12.5]} 27. axb4 {[%clk 0:00:29.2]} 27... axb4 {[%clk 0:01:13.4]} 28.
R4g2 {[%clk 0:00:17.3]} 28... bxc3 {[%clk 0:01:12]} 29. Qc1 {[%clk 0:00:17.3]}
29... Qxd4 {[%clk 0:01:06.4]} 30. Ng4 {[%clk 0:00:17.8]} 30... Ra1 {[%clk
0:00:37.3]} 31. Qxa1 {[%clk 0:00:14.9]} 31... Qxf4+ {[%clk 0:00:37.5]} 32. Kh3
{[%clk 0:00:15.4]} 32... Qg5 {[%clk 0:00:27.1]} 33. Nf6+ {[%clk 0:00:12.8]}
33... gxf6 {[%clk 0:00:24.1]} 34. Rxg5 {[%clk 0:00:11.8]} 34... fxg5 {[%clk
0:00:25]} 35. Bg4 {[%clk 0:00:11.3]} 35... Nxg6 {[%clk 0:00:20.6]} 36. Qa3
{[%clk 0:00:12.2]} 36... Nfh4 {[%clk 0:00:16.7]} 37. Qd6 {[%clk 0:00:10.7]}
37... Rxf2 {[%clk 0:00:14.7]} 38. Bxe6+ {[%clk 0:00:07.9]} 38... Bxe6+ {[%clk
0:00:11.1]} 39. Qxe6+ {[%clk 0:00:08.8]} 39... Kg7 {[%clk 0:00:10.8]} 40. Qd7+
{[%clk 0:00:09.3]} 40... Rf7 {[%clk 0:00:09.9]} 41. Qd6 {[%clk 0:00:08.5]} 41...
Rf3+ {[%clk 0:00:08.7]} 42. Kh2 {[%clk 0:00:08.2]} 42... Rf2+ {[%clk 0:00:08.9]}
43. Kh1 {[%clk 0:00:07.1]} 43... Nf3 {[%clk 0:00:04.9]} 44. Qc7+ {[%clk
0:00:07.2]} 44... Kg8 {[%clk 0:00:04.5]} 45. e6 {[%clk 0:00:07.1]} 45... Rh2+
{[%clk 0:00:01.9]} 46. Qxh2 {[%clk 0:00:07.5]} 46... Nxh2 {[%clk 0:00:02.8]} 47.
Kxh2 {[%clk 0:00:08.4]} 47... Kf8 {[%clk 0:00:02.9]} 48. Re1 {[%clk 0:00:07.8]}
48... Ke7 {[%clk 0:00:02.6]} 49. Kg3 {[%clk 0:00:08.7]} 49... Nf4 {[%clk
0:00:02.8]} 50. Kg4 {[%clk 0:00:08.9]} 50... d4 {[%clk 0:00:03]} 51. Kf5 {[%clk
0:00:08.5]} 51... d3 {[%clk 0:00:03.3]} 52. Re3 {[%clk 0:00:07.8]} 52... d2
{[%clk 0:00:02.4]} 53. Rxc3 {[%clk 0:00:07.6]} 53... d1=Q {[%clk 0:00:01.9]} 54.
Ke4 {[%clk 0:00:08]} 54... Qd5+ {[%clk 0:00:01.8]} 55. Ke3 {[%clk 0:00:07.6]}
55... Qxe6+ {[%clk 0:00:02.7]} 56. Kd2 {[%clk 0:00:08.5]} 56... Nd5 {[%clk
0:00:02.8]} 57. Re3 {[%clk 0:00:09.4]} 57... Qe4 {[%clk 0:00:03.2]} 58. Rxe4+
{[%clk 0:00:09.3]} 58... Kd6 {[%clk 0:00:04.1]} 59. Rxc4 {[%clk 0:00:09.9]}
59... Ke5 {[%clk 0:00:04.2]} 60. Ra4 {[%clk 0:00:10.4]} 60... Kd6 {[%clk
0:00:05.1]} 61. Ra5 {[%clk 0:00:11]} 61... Ke5 {[%clk 0:00:06]} 62. c4 {[%clk
0:00:11.4]} 62... h5 {[%clk 0:00:05.4]} 63. cxd5 {[%clk 0:00:12.3]} 63... Kd4
{[%clk 0:00:06.1]} 64. d6 {[%clk 0:00:12.3]} 64... g4 {[%clk 0:00:07]} 65. Rxh5
{[%clk 0:00:11.6]} 65... g3 {[%clk 0:00:05.4]} 66. Rg5 {[%clk 0:00:11.9]} 66...
g2 {[%clk 0:00:05.5]} 67. d7 {[%clk 0:00:10.6]} 67... g1=Q {[%clk 0:00:05.1]}
68. d8=Q+ {[%clk 0:00:11]} 1-0

[Event "Early-Titled-Tuesday-Blitz-October-03-2023"]
[Site "Chess.com"]
[Date "2023.10.03"]
[Round "8"]
[White "Zablotsky"]
[Black "Sadykov_Ramil"]
[Result "1-0"]
[WhiteElo "2740"]
[BlackElo "2603"]
[TimeControl "180+1"]
[EndTime "9:30:54 PDT"]
[Termination "Zablotsky won on time"]

1. Nf3 {[%clk 0:03:00.9]} 1... Nf6 {[%clk 0:02:59.5]} 2. g3 {[%clk 0:03:00.3]}
2... g6 {[%clk 0:03:00.1]} 3. b3 {[%clk 0:03:00.9]} 3... Bg7 {[%clk 0:03:00.9]}
4. Bb2 {[%clk 0:03:01.6]} 4... O-O {[%clk 0:03:01.5]} 5. Bg2 {[%clk 0:03:02.2]}
5... b6 {[%clk 0:03:00]} 6. O-O {[%clk 0:03:02]} 6... Bb7 {[%clk 0:03:00.3]} 7.
c4 {[%clk 0:03:02.5]} 7... c5 {[%clk 0:03:00.1]} 8. e3 {[%clk 0:03:02]} 8... d5
{[%clk 0:02:56.7]} 9. d4 {[%clk 0:03:00.1]} 9... cxd4 {[%clk 0:02:43.7]} 10.
exd4 {[%clk 0:02:59.1]} 10... Nc6 {[%clk 0:02:38]} 11. Re1 {[%clk 0:02:57.9]}
11... dxc4 {[%clk 0:02:28.4]} 12. bxc4 {[%clk 0:02:58.8]} 12... Na5 {[%clk
0:02:29]} 13. Nbd2 {[%clk 0:02:57.3]} 13... Rc8 {[%clk 0:02:26.8]} 14. Rc1
{[%clk 0:02:57.5]} 14... e6 {[%clk 0:02:25.4]} 15. Qa4 {[%clk 0:02:39]} 15...
Qd7 {[%clk 0:02:13.1]} 16. Qb4 {[%clk 0:02:30.9]} 16... Rfd8 {[%clk 0:02:08.4]}
17. Ne5 {[%clk 0:02:30.8]} 17... Qc7 {[%clk 0:02:07]} 18. Ndf3 {[%clk 0:02:20]}
18... Ne8 {[%clk 0:01:46.4]} 19. c5 {[%clk 0:01:55.7]} 19... Nf6 {[%clk
0:01:37.8]} 20. cxb6 {[%clk 0:01:14.7]} 20... Qxb6 {[%clk 0:01:35.7]} 21. Qe7
{[%clk 0:01:14.9]} 21... Rf8 {[%clk 0:01:22.5]} 22. Rxc8 {[%clk 0:01:10.1]}
22... Bxc8 {[%clk 0:01:23.4]} 23. Ba3 {[%clk 0:01:00.2]} 23... Nd5 {[%clk
0:01:15.3]} 24. Qh4 {[%clk 0:00:59.9]} 24... Bf6 {[%clk 0:00:55.8]} 25. Qh6
{[%clk 0:00:52.8]} 25... Re8 {[%clk 0:00:36.9]} 26. Nxf7 {[%clk 0:00:50.9]}
26... Bg7 {[%clk 0:00:29.1]} 27. Qh4 {[%clk 0:00:44.8]} 27... Nc4 {[%clk
0:00:12.7]} 28. Bc5 {[%clk 0:00:39.5]} 28... Qa5 {[%clk 0:00:12.5]} 29. Nd6
{[%clk 0:00:20.6]} 29... Nxd6 {[%clk 0:00:08.2]} 30. Bxd6 {[%clk 0:00:21.5]}
30... Qxa2 {[%clk 0:00:07.1]} 31. Be5 {[%clk 0:00:21.8]} 31... Qa3 {[%clk
0:00:03.2]} 32. Ng5 {[%clk 0:00:21.5]} 32... h6 {[%clk 0:00:03.1]} 33. Bxg7
{[%clk 0:00:19.5]} 33... Kxg7 {[%clk 0:00:03.4]} 34. Bxd5 {[%clk 0:00:19.2]}
34... hxg5 {[%clk 0:00:02]} 35. Qxg5 {[%clk 0:00:19.9]} 35... Qd6 {[%clk
0:00:02.3]} 36. Be4 {[%clk 0:00:18.4]} 36... e5 {[%clk 0:00:01.6]} 37. d5 {[%clk
0:00:18.1]} 37... Qf6 {[%clk 0:00:01.4]} 38. Qe3 {[%clk 0:00:17.5]} 38... Bf5
{[%clk 0:00:02]} 39. Qxa7+ {[%clk 0:00:17.5]} 39... Re7 {[%clk 0:00:01.8]} 40.
Qe3 {[%clk 0:00:18.2]} 40... Rf7 {[%clk 0:00:01.9]} 41. Re2 {[%clk 0:00:18.2]}
41... Bxe4 {[%clk 0:00:02.2]} 42. Qxe4 {[%clk 0:00:19.1]} 42... Qd6 {[%clk
0:00:02.6]} 43. Kg2 {[%clk 0:00:19.6]} 43... Kf6 {[%clk 0:00:02.6]} 44. f4
{[%clk 0:00:19.6]} 44... exf4 {[%clk 0:00:02.7]} 45. Rf2 {[%clk 0:00:20.1]}
45... Kg7 {[%clk 0:00:02.7]} 46. Rxf4 {[%clk 0:00:20.4]} 46... Rd7 {[%clk
0:00:03.4]} 47. Qd4+ {[%clk 0:00:16.9]} 47... Kg8 {[%clk 0:00:03.9]} 48. Rg4
{[%clk 0:00:15.9]} 48... Kf7 {[%clk 0:00:03.4]} 49. Qf4+ {[%clk 0:00:15.6]}
49... Kg8 {[%clk 0:00:04]} 50. Qxd6 {[%clk 0:00:15.2]} 50... Rxd6 {[%clk
0:00:04.9]} 51. Rg5 {[%clk 0:00:15.9]} 51... Kf7 {[%clk 0:00:05.2]} 52. h4
{[%clk 0:00:16.8]} 52... Kf6 {[%clk 0:00:05.7]} 53. Kf3 {[%clk 0:00:17.4]} 53...
Ra6 {[%clk 0:00:06.1]} 54. Ke4 {[%clk 0:00:17.5]} 54... Ra4+ {[%clk 0:00:06.2]}
55. Kd3 {[%clk 0:00:17.8]} 55... Ra3+ {[%clk 0:00:06.8]} 56. Kc4 {[%clk
0:00:18.3]} 56... Ra1 {[%clk 0:00:03.6]} 57. Kc5 {[%clk 0:00:18]} 57... Rc1+
{[%clk 0:00:03.6]} 58. Kd6 {[%clk 0:00:18.4]} 58... Rc2 {[%clk 0:00:03.5]} 59.
Kd7 {[%clk 0:00:18.8]} 59... Rc5 {[%clk 0:00:02.1]} 60. d6 {[%clk 0:00:18.6]}
60... Rc3 {[%clk 0:00:01.7]} 61. Ke8 {[%clk 0:00:16.2]} 61... Re3+ {[%clk
0:00:01.6]} 62. Kd8 {[%clk 0:00:16.4]} 62... Ra3 {[%clk 0:00:01]} 63. d7 {[%clk
0:00:16.1]} 63... Ra8+ {[%clk 0:00:01.6]} 64. Kc7 {[%clk 0:00:16.7]} 64... Ra7+
{[%clk 0:00:02.2]} 65. Kc6 {[%clk 0:00:17.2]} 65... Ra6+ {[%clk 0:00:02.3]} 66.
Kb7 {[%clk 0:00:17.2]} 1-0

[Event "Early-Titled-Tuesday-Blitz-October-03-2023"]
[Site "Chess.com"]
[Date "2023.10.03"]
[Round "8"]
[White "santosalberto1987"]
[Black "Xqswdc"]
[Result "1/2-1/2"]
[WhiteElo "2489"]
[BlackElo "2330"]
[TimeControl "180+1"]
[EndTime "9:31:04 PDT"]
[Termination "Game drawn - insufficient material"]

1. e4 {[%clk 0:03:00.9]} 1... g6 {[%clk 0:02:59.8]} 2. d4 {[%clk 0:03:00.9]}
2... Bg7 {[%clk 0:03:00.5]} 3. Nc3 {[%clk 0:03:01.1]} 3... c6 {[%clk 0:03:00.5]}
4. Nf3 {[%clk 0:03:00.7]} 4... d5 {[%clk 0:02:59.6]} 5. h3 {[%clk 0:03:00.8]}
5... dxe4 {[%clk 0:02:55.3]} 6. Nxe4 {[%clk 0:03:01.7]} 6... Bf5 {[%clk
0:02:55.8]} 7. Ng3 {[%clk 0:02:58.7]} 7... Be6 {[%clk 0:02:56.1]} 8. Ng5 {[%clk
0:02:52.3]} 8... Qxd4 {[%clk 0:02:06.6]} 9. Qxd4 {[%clk 0:02:48.2]} 9... Bxd4
{[%clk 0:02:07.1]} 10. Nxe6 {[%clk 0:02:48.6]} 10... fxe6 {[%clk 0:02:07.6]} 11.
Bc4 {[%clk 0:02:48.3]} 11... e5 {[%clk 0:01:53]} 12. O-O {[%clk 0:02:36.4]}
12... Nf6 {[%clk 0:01:53.3]} 13. Re1 {[%clk 0:02:32.5]} 13... Rf8 {[%clk
0:01:51.5]} 14. Be3 {[%clk 0:02:30.3]} 14... Nbd7 {[%clk 0:01:46.9]} 15. c3
{[%clk 0:02:30.1]} 15... Bxe3 {[%clk 0:01:46.7]} 16. Rxe3 {[%clk 0:02:31]} 16...
O-O-O {[%clk 0:01:46.1]} 17. Ne4 {[%clk 0:02:24.5]} 17... Kc7 {[%clk 0:01:45.6]}
18. Ng5 {[%clk 0:02:22.7]} 18... Nc5 {[%clk 0:01:41.5]} 19. b4 {[%clk
0:02:21.6]} 19... h6 {[%clk 0:01:41.8]} 20. Nf3 {[%clk 0:02:09.1]} 20... e4
{[%clk 0:01:25.2]} 21. bxc5 {[%clk 0:01:13.8]} 21... exf3 {[%clk 0:01:24.8]} 22.
Rxe7+ {[%clk 0:01:14.7]} 22... Rd7 {[%clk 0:01:21.8]} 23. Rae1 {[%clk 0:01:15]}
23... fxg2 {[%clk 0:01:12.9]} 24. Kxg2 {[%clk 0:01:13.3]} 24... Nh5 {[%clk
0:00:59.9]} 25. Rxd7+ {[%clk 0:01:02.1]} 25... Kxd7 {[%clk 0:00:59.9]} 26. Be6+
{[%clk 0:01:02.8]} 26... Kc7 {[%clk 0:00:56.7]} 27. Bg4 {[%clk 0:01:02.2]} 27...
Nf4+ {[%clk 0:00:56.1]} 28. Kg3 {[%clk 0:01:02.3]} 28... Rf7 {[%clk 0:00:48.8]}
29. Re4 {[%clk 0:00:59.1]} 29... Nd5 {[%clk 0:00:47.6]} 30. c4 {[%clk
0:00:57.5]} 30... Nc3 {[%clk 0:00:37.7]} 31. Re6 {[%clk 0:00:55.7]} 31... Rg7
{[%clk 0:00:30.1]} 32. a3 {[%clk 0:00:32.2]} 32... Na4 {[%clk 0:00:30]} 33. Re5
{[%clk 0:00:31.9]} 33... Rd7 {[%clk 0:00:29.6]} 34. h4 {[%clk 0:00:30.4]} 34...
Rf7 {[%clk 0:00:20.5]} 35. Be2 {[%clk 0:00:23.2]} 35... b6 {[%clk 0:00:19.1]}
36. cxb6+ {[%clk 0:00:22.9]} 36... axb6 {[%clk 0:00:19.7]} 37. Bd3 {[%clk
0:00:23]} 37... Rf6 {[%clk 0:00:18.3]} 38. Re7+ {[%clk 0:00:21.4]} 38... Kd6
{[%clk 0:00:18.8]} 39. Rg7 {[%clk 0:00:22.3]} 39... Nb2 {[%clk 0:00:14]} 40. Be2
{[%clk 0:00:18.4]} 40... Re6 {[%clk 0:00:12.6]} 41. Bf1 {[%clk 0:00:15.7]} 41...
Kc5 {[%clk 0:00:13.2]} 42. Rh7 {[%clk 0:00:08.6]} 42... h5 {[%clk 0:00:11.4]}
43. Rb7 {[%clk 0:00:08.5]} 43... Na4 {[%clk 0:00:09.3]} 44. Kf4 {[%clk 0:00:07]}
44... Rf6+ {[%clk 0:00:09.2]} 45. Ke3 {[%clk 0:00:07.2]} 45... Nb2 {[%clk
0:00:07.1]} 46. f4 {[%clk 0:00:06.2]} 46... Re6+ {[%clk 0:00:07]} 47. Kf3 {[%clk
0:00:06.3]} 47... Nd1 {[%clk 0:00:07.3]} 48. Be2 {[%clk 0:00:06]} 48... Ne3
{[%clk 0:00:07.1]} 49. Bd3 {[%clk 0:00:05.9]} 49... Nd1 {[%clk 0:00:04.7]} 50.
Kg2 {[%clk 0:00:04]} 50... Re3 {[%clk 0:00:03.1]} 51. Bxg6 {[%clk 0:00:03.9]}
51... Nc3 {[%clk 0:00:02.7]} 52. Bxh5 {[%clk 0:00:03.9]} 52... Re4 {[%clk
0:00:02.8]} 53. Re7 {[%clk 0:00:02.2]} 53... Rxe7 {[%clk 0:00:02.6]} 54. f5
{[%clk 0:00:02.4]} 54... Rg7+ {[%clk 0:00:02.2]} 55. Kf3 {[%clk 0:00:02.4]}
55... Rg8 {[%clk 0:00:03.1]} 56. f6 {[%clk 0:00:02.7]} 56... Kd6 {[%clk
0:00:04]} 57. f7 {[%clk 0:00:03.1]} 57... Rf8 {[%clk 0:00:04.9]} 58. Bg6 {[%clk
0:00:03.8]} 58... Ke7 {[%clk 0:00:05.5]} 59. h5 {[%clk 0:00:04.7]} 59... b5
{[%clk 0:00:03.4]} 60. cxb5 {[%clk 0:00:04.7]} 60... cxb5 {[%clk 0:00:04.3]} 61.
Ke3 {[%clk 0:00:05.1]} 61... Nd5+ {[%clk 0:00:04.3]} 62. Kd4 {[%clk 0:00:05.3]}
62... Nf6 {[%clk 0:00:05.2]} 63. Kc5 {[%clk 0:00:05.4]} 63... Rb8 {[%clk
0:00:05.1]} 64. h6 {[%clk 0:00:05.7]} 64... Kf8 {[%clk 0:00:02.6]} 65. h7 {[%clk
0:00:04.9]} 65... Kg7 {[%clk 0:00:02.9]} 66. Bd3 {[%clk 0:00:05]} 66... Nxh7
{[%clk 0:00:02.9]} 67. Bxb5 {[%clk 0:00:05.5]} 67... Nf8 {[%clk 0:00:03.4]} 68.
a4 {[%clk 0:00:06.1]} 68... Kf6 {[%clk 0:00:03.5]} 69. a5 {[%clk 0:00:06.6]}
69... Kxf7 {[%clk 0:00:04.4]} 70. a6 {[%clk 0:00:06.9]} 70... Ke7 {[%clk
0:00:05]} 71. a7 {[%clk 0:00:07.2]} 71... Ra8 {[%clk 0:00:05]} 72. Kb6 {[%clk
0:00:08.1]} 72... Nd7+ {[%clk 0:00:05.2]} 73. Bxd7 {[%clk 0:00:06.8]} 73... Kxd7
{[%clk 0:00:05.3]} 74. Kb7 {[%clk 0:00:07.7]} 74... Rxa7+ {[%clk 0:00:05.2]} 75.
Kxa7 {[%clk 0:00:08.6]} 1/2-1/2

[Event "Early-Titled-Tuesday-Blitz-October-03-2023"]
[Site "Chess.com"]
[Date "2023.10.03"]
[Round "8"]
[White "Antik5"]
[Black "chesslh19"]
[Result "1/2-1/2"]
[WhiteElo "2483"]
[BlackElo "2329"]
[TimeControl "180+1"]
[EndTime "9:31:04 PDT"]
[Termination "Game drawn - timeout vs insufficient material"]

1. c4 {[%clk 0:03:00.9]} 1... e6 {[%clk 0:02:56.7]} 2. Nc3 {[%clk 0:03:00.4]}
2... d5 {[%clk 0:02:57.6]} 3. d4 {[%clk 0:02:59.7]} 3... Nf6 {[%clk 0:02:58]} 4.
cxd5 {[%clk 0:02:59.5]} 4... exd5 {[%clk 0:02:58.9]} 5. Bg5 {[%clk 0:02:59.9]}
5... c6 {[%clk 0:02:59.3]} 6. e3 {[%clk 0:03:00.4]} 6... Be7 {[%clk 0:02:59.4]}
7. Bd3 {[%clk 0:03:00.9]} 7... Nbd7 {[%clk 0:03:00]} 8. Nge2 {[%clk 0:03:00.8]}
8... O-O {[%clk 0:03:00.7]} 9. O-O {[%clk 0:02:59.8]} 9... Re8 {[%clk
0:03:01.2]} 10. Qc2 {[%clk 0:02:57.1]} 10... Nf8 {[%clk 0:03:01.3]} 11. Rae1
{[%clk 0:02:53.6]} 11... Nh5 {[%clk 0:02:51]} 12. Bxe7 {[%clk 0:02:51.4]} 12...
Qxe7 {[%clk 0:02:51.9]} 13. Nd1 {[%clk 0:02:37.7]} 13... Nf6 {[%clk 0:02:41.3]}
14. f3 {[%clk 0:02:35.8]} 14... Qd6 {[%clk 0:02:26.1]} 15. Ng3 {[%clk
0:02:05.8]} 15... Bd7 {[%clk 0:02:17.2]} 16. Nf5 {[%clk 0:02:03.3]} 16... Bxf5
{[%clk 0:02:17.2]} 17. Bxf5 {[%clk 0:02:02.9]} 17... g6 {[%clk 0:02:11.9]} 18.
Bd3 {[%clk 0:01:49.9]} 18... Ne6 {[%clk 0:01:55.1]} 19. Qf2 {[%clk 0:01:38.7]}
19... c5 {[%clk 0:01:43]} 20. dxc5 {[%clk 0:01:38.7]} 20... Qxc5 {[%clk
0:01:33.2]} 21. Re2 {[%clk 0:01:18.5]} 21... Qb6 {[%clk 0:01:31.9]} 22. Rc2
{[%clk 0:01:08.4]} 22... Rac8 {[%clk 0:01:24.4]} 23. h4 {[%clk 0:00:54.9]} 23...
Nc5 {[%clk 0:01:22.1]} 24. Qd2 {[%clk 0:00:41.9]} 24... Nxd3 {[%clk 0:01:16.4]}
25. Rxc8 {[%clk 0:00:25.7]} 25... Rxc8 {[%clk 0:01:15.8]} 26. Qxd3 {[%clk
0:00:26.3]} 26... a6 {[%clk 0:01:08.8]} 27. b3 {[%clk 0:00:17.5]} 27... h5
{[%clk 0:01:02.1]} 28. Nc3 {[%clk 0:00:17.4]} 28... Re8 {[%clk 0:00:50.8]} 29.
Qd4 {[%clk 0:00:06.3]} 29... Qxd4 {[%clk 0:00:46]} 30. exd4 {[%clk 0:00:07.2]}
30... Re3 {[%clk 0:00:43.4]} 31. Na4 {[%clk 0:00:07.3]} 31... Re2 {[%clk
0:00:35]} 32. Nc5 {[%clk 0:00:05.2]} 32... Rxa2 {[%clk 0:00:32.9]} 33. Nxb7
{[%clk 0:00:05]} 33... Rd2 {[%clk 0:00:33]} 34. Nc5 {[%clk 0:00:03.7]} 34... a5
{[%clk 0:00:21.3]} 35. Ra1 {[%clk 0:00:03.7]} 35... Rxd4 {[%clk 0:00:20.2]} 36.
Rxa5 {[%clk 0:00:04.3]} 36... Rxh4 {[%clk 0:00:20.2]} 37. Ra4 {[%clk 0:00:04.1]}
37... Rxa4 {[%clk 0:00:18.3]} 38. bxa4 {[%clk 0:00:05]} 38... Ne8 {[%clk
0:00:11.6]} 39. Kf2 {[%clk 0:00:04.7]} 39... Kf8 {[%clk 0:00:11.3]} 40. Ke3
{[%clk 0:00:04.5]} 40... Ke7 {[%clk 0:00:11.8]} 41. Kd4 {[%clk 0:00:04]} 41...
Kd6 {[%clk 0:00:12]} 42. a5 {[%clk 0:00:04.3]} 42... Nc7 {[%clk 0:00:09.7]} 43.
Nb7+ {[%clk 0:00:04.5]} 43... Kc6 {[%clk 0:00:09]} 44. Nd8+ {[%clk 0:00:04.6]}
44... Kd7 {[%clk 0:00:08.5]} 45. Nxf7 {[%clk 0:00:04.9]} 45... Ke6 {[%clk
0:00:07.7]} 46. Nh8 {[%clk 0:00:02.8]} 46... Kf6 {[%clk 0:00:06.9]} 47. Kc5
{[%clk 0:00:02]} 47... Kg7 {[%clk 0:00:06.9]} 48. Kc6 {[%clk 0:00:02.3]} 48...
d4 {[%clk 0:00:03.9]} 49. Kxc7 {[%clk 0:00:02.2]} 49... d3 {[%clk 0:00:04.3]}
50. a6 {[%clk 0:00:02.3]} 50... d2 {[%clk 0:00:04.7]} 51. a7 {[%clk 0:00:02.9]}
51... d1=Q {[%clk 0:00:05]} 52. a8=Q {[%clk 0:00:03.7]} 52... Qc2+ {[%clk
0:00:04.1]} 53. Kd6 {[%clk 0:00:03.8]} 53... Qd2+ {[%clk 0:00:03.2]} 54. Ke5
{[%clk 0:00:03.9]} 54... Qe3+ {[%clk 0:00:02.9]} 55. Kd6 {[%clk 0:00:03.4]}
55... Qd2+ {[%clk 0:00:02.5]} 56. Qd5 {[%clk 0:00:02.7]} 56... Qxd5+ {[%clk
0:00:01.3]} 57. Kxd5 {[%clk 0:00:03.6]} 57... Kxh8 {[%clk 0:00:02.2]} 58. Ke6
{[%clk 0:00:03.4]} 58... Kg7 {[%clk 0:00:02.7]} 59. f4 {[%clk 0:00:02.1]} 59...
Kg8 {[%clk 0:00:01.6]} 60. Kf6 {[%clk 0:00:02.3]} 60... Kh7 {[%clk 0:00:02]} 61.
g3 {[%clk 0:00:02.3]} 61... Kh6 {[%clk 0:00:01.8]} 62. f5 {[%clk 0:00:02.3]}
62... gxf5 {[%clk 0:00:01.9]} 63. Kxf5 {[%clk 0:00:02.7]} 63... h4 {[%clk
0:00:02.4]} 64. gxh4 {[%clk 0:00:01.7]} 64... Kh5 {[%clk 0:00:02.7]} 1/2-1/2